fUSD/lending_fUSD_20240205
["ID","MTS","AMOUNT","RATE_DAILY","PERIOD"]
[313315826,1707141066967,-767.26,0.00045205,7]
[313315827,1707141066976,-881.23,0.00045205,7]
[313315828,1707141066987,-500.0,0.00045205,7]
[313315829,1707141066997,-731.54,0.00045205,2]
[313315830,1707141067007,-500.0,0.00045205,7]
[313315831,1707141067019,-500.0,0.00045205,7]
[313315832,1707141067028,-500.0,0.00045205,7]
[313315833,1707141067037,-696.59,0.00045205,7]
[313315834,1707141067051,-259.4962094,0.00045205,7]
[313315835,1707141067062,-500.0,0.00045205,7]
[313315836,1707141067072,-500.0,0.00045205,7]
[313315837,1707141067082,-500.0,0.00045205,7]
[313315838,1707141067094,-500.0,0.00045205,7]
[313315839,1707141067103,-982.48,0.00045205,7]
[313315840,1707141067117,-500.0,0.00045205,7]
[313315841,1707141067129,-500.0,0.00045205,7]
[313315842,1707141067140,-500.0,0.00045205,7]
[313315843,1707141067152,-1951.09,0.00045205,7]
[313315844,1707141067162,-340.60973618,0.00045205,7]
[313315845,1707141067171,-883.69,0.00045205,7]
[313315846,1707141067181,-500.0,0.00045205,7]
[313315847,1707141067190,-500.0,0.00045205,7]
[313315848,1707141067205,-1662.45,0.00045205,7]
[313315849,1707141067216,-500.0,0.00045205,7]
[313315850,1707141067226,-543.57,0.00045205,7]
[313315851,1707141067236,-1413.28,0.00045205,7]
[313315852,1707141067245,-500.0,0.00045205,7]
[313315853,1707141067259,-547.5,0.00045205,7]
[313315854,1707141067277,-500.0,0.00045205,7]
[313315855,1707141067288,-500.0,0.00045205,7]
[313315856,1707141067298,-500.0,0.00045205,2]
[313315857,1707141067309,-857.72,0.00045205,7]
[313315858,1707141067320,-500.0,0.00045205,7]
[313315859,1707141067330,-719.71,0.00045205,2]
[313315860,1707141067340,-667.71,0.00045205,2]
[313315861,1707141067350,-500.0,0.00045205,7]
[313315862,1707141067360,-640.9,0.00045205,7]
[313315863,1707141067370,-480.43908298,0.00045205,7]
[313315864,1707141067379,-949.09,0.00045205,7]
[313315865,1707141067389,-500.0,0.00045205,7]
[313315866,1707141067399,-500.0,0.00045205,7]
[313315867,1707141067409,-500.0,0.00045205,7]
[313315868,1707141067423,-500.0,0.00045205,7]
[313315869,1707141067442,-500.0,0.00045205,7]
[313315870,1707141067454,-500.0,0.00045205,7]
[313315871,1707141067464,-485.84175044,0.00045205,7]
[313315872,1707141067474,-500.0,0.00045205,7]
[313315873,1707141067483,-547.63,0.00045205,7]
[313315874,1707141067493,-1075.46,0.00045205,7]
[313315875,1707141067504,-517.66,0.00045205,7]
[313315876,1707141067518,-550.91,0.00045205,7]
[313315877,1707141067528,-1349.54,0.00045205,7]
[313315878,1707141067538,-500.0,0.00045205,7]
[313315879,1707141067548,-500.0,0.00045205,7]
[313315880,1707141067558,-500.0,0.00045205,7]
[313315881,1707141067568,-613.72,0.00045205,7]
[313315882,1707141067578,-1006.73,0.00045205,7]
[313315883,1707141067587,-1250.19,0.00045205,2]
[313315884,1707141067598,-1273.66,0.00045205,7]
[313315885,1707141067608,-6044.25,0.00045205,7]
[313315886,1707141067618,-500.0,0.00045205,7]
[313315887,1707141067729,-500.0,0.00045205,7]
[313315888,1707141067739,-1144.85,0.00045205,7]
[313315889,1707141067749,-500.0,0.00045205,7]
[313315890,1707141067759,-1340.06,0.00045205,7]
[313315891,1707141067769,-1146.57,0.00045205,7]
[313315892,1707141067778,-753.23,0.00045205,7]
[313315893,1707141067788,-1749.33,0.00045205,5]
[313315894,1707141067798,-500.0,0.00045205,7]
[313315895,1707141067807,-973.94,0.00045205,7]
[313315896,1707141067817,-883.86,0.00045205,7]
[313315897,1707141067827,-1114.96,0.00045205,7]
[313315898,1707141067837,-517.64,0.00045205,7]
[313315899,1707141067846,-373.61092778,0.00045205,7]
[313315900,1707141067855,-500.0,0.00045205,7]
[313315901,1707141067865,-1040.76,0.00045205,7]
[313315902,1707141067874,-1579.06,0.00045205,7]
[313315903,1707141067884,-500.0,0.00045205,7]
[313315904,1707141067894,-500.0,0.00045205,7]
[313315905,1707141067903,-500.0,0.00045205,7]
[313315906,1707141067913,-708.83,0.00045205,7]
[313315907,1707141067923,-695.17,0.00045205,7]
[313315908,1707141067932,-4647.44,0.00045205,7]
[313315909,1707141067941,-794.97,0.00045205,7]
[313315910,1707141067952,-500.0,0.00045205,20]
[313315911,1707141067961,-2815.53,0.00045205,7]
[313315912,1707141067970,-16636.33,0.00045205,7]
[313315913,1707141067980,-563.07,0.00045205,7]
[313315914,1707141067989,-874.74,0.00045205,7]
[313315915,1707141067998,-882.21,0.00045205,7]
[313315916,1707141068008,-613.72,0.00045205,7]
[313315917,1707141068017,-500.0,0.00045205,7]
[313315918,1707141068026,-500.0,0.00045205,7]
[313315919,1707141068036,-1232.66,0.00045205,7]
[313315920,1707141068046,-500.0,0.00045205,7]
[313315921,1707141068057,-500.0,0.00045205,7]
[313315922,1707141068067,-786.94,0.00045205,7]
[313315923,1707141068078,-619.7,0.00045205,7]
[313315924,1707141068089,-1817.8,0.00045205,7]
[313315925,1707141068100,-500.0,0.00045205,7]
[313315926,1707141068110,-500.0,0.00045205,7]
[313315927,1707141068120,-500.0,0.00045205,7]
[313315928,1707141068130,-2945.36,0.00045205,7]
[313315929,1707141068140,-1282.34,0.00045205,7]
[313315930,1707141068154,-3282.54,0.00045205,7]
[313315931,1707141068164,-500.0,0.00045205,7]
[313315932,1707141068175,-500.0,0.00045205,7]
[313315933,1707141068186,-500.0,0.00045205,7]
[313315934,1707141068198,-3762.66,0.00045205,7]
[313315935,1707141068208,-902.51,0.00045205,7]
[313315936,1707141068217,-811.91,0.00045205,7]
[313315937,1707141068227,-3153.57,0.00045205,7]
[313315938,1707141068237,-1620.37,0.00045205,7]
[313315939,1707141068246,-1709.25,0.00045205,7]
[313315940,1707141068256,-500.0,0.00045205,7]
[313315941,1707141068266,-500.0,0.00045205,7]
[313315942,1707141068276,-500.0,0.00045205,7]
[313315943,1707141068286,-841.14,0.00045205,7]
[313315944,1707141068296,-500.0,0.00045205,7]
[313315945,1707141068306,-897.63,0.00045205,7]
[313315946,1707141068316,-500.0,0.00045205,7]
[313315947,1707141068326,-275.75448084,0.00045205,7]
[313315948,1707141068337,-682.04,0.00045205,7]
[313315949,1707141068346,-500.0,0.00045205,7]
[313315950,1707141068357,-500.0,0.00045205,7]
[313315951,1707141068367,-595.39,0.00045205,7]
[313315952,1707141068378,-2067.99,0.00045205,7]
[313315953,1707141068388,-500.0,0.00045205,7]
[313315954,1707141068398,-500.0,0.00045205,7]
[313315955,1707141068408,-720.96,0.00045205,7]
[313315956,1707141068421,-1212.3,0.00045205,7]
[313315957,1707141068431,-772.76,0.00045205,7]
[313315958,1707141068442,-454.57512358,0.00045205,7]
[313315959,1707141068454,-563.57,0.00045205,7]
[313315960,1707141068464,-500.0,0.00045205,7]
[313315961,1707141068476,-500.0,0.00045205,7]
[313315962,1707141068487,-500.0,0.00045205,7]
[313315963,1707141068501,-500.0,0.00045205,7]
[313315964,1707141068512,-3315.66,0.00045205,7]
[313315965,1707141068535,-1673.13,0.00045205,7]
[313315966,1707141068555,-1183.67,0.00045205,7]
[313315967,1707141068576,-500.0,0.00045205,7]
[313315968,1707141068597,-900.33,0.00045205,7]
[313315969,1707141068614,-640.84,0.00045205,7]
[313315970,1707141068633,-4531.2,0.00045205,7]
[313315971,1707141068654,-500.0,0.00045205,7]
[313315972,1707141068671,-1576.09,0.00045205,7]
[313315973,1707141068694,-797.42,0.00045205,7]
[313315974,1707141068715,-500.0,0.00045205,7]
[313315975,1707141068735,-500.0,0.00045205,7]
[313315976,1707141068759,-3717.27,0.00045205,7]
[313315977,1707141068776,-652.52,0.00045205,7]
[313315978,1707141068791,-500.0,0.00045205,7]
[313315979,1707141068816,-521.68,0.00045205,7]
[313315980,1707141068834,-500.0,0.00045205,7]
[313315981,1707141068860,-2030.25,0.00045205,7]
[313315982,1707141068887,-1425.8,0.00045205,7]
[313315983,1707141068913,-853.61,0.00045205,7]
[313315984,1707141068930,-943.6,0.00045205,7]
[313315985,1707141068952,-797.05,0.00045205,7]
[313315986,1707141068982,-869.18,0.00045205,7]
[313315987,1707141069002,-16477.57,0.00045205,7]
[313315988,1707141069020,-615.37,0.00045205,7]
[313315989,1707141069042,-962.12,0.00045205,7]
[313315990,1707141069059,-759.37,0.00045205,7]
[313315991,1707141069077,-2493.22,0.00045205,7]
[313315992,1707141069103,-637.09,0.00045205,7]
[313315993,1707141069120,-500.0,0.00045205,7]
[313315994,1707141069147,-500.0,0.00045205,7]
[313315995,1707141069163,-772.9,0.00045205,7]
[313315996,1707141069201,-1247.25,0.00045205,7]
[313315997,1707141069228,-564.67,0.00045205,7]
[313315998,1707141069246,-1021.83,0.00045205,7]
[313315999,1707141069261,-500.0,0.00045205,7]
[313316000,1707141069277,-500.0,0.00045205,7]
[313316001,1707141069306,-500.0,0.00045205,7]
[313316002,1707141069323,-1860.07,0.00045205,5]
[313316003,1707141069341,-965.46,0.00045205,7]
[313316004,1707141069356,-666.83,0.00045205,7]
[313316005,1707141069374,-835.34,0.00045205,7]
[313316006,1707141069392,-500.0,0.00045205,7]
[313316007,1707141069409,-1670.53,0.00045205,7]
[313316008,1707141069426,-500.0,0.00045205,7]
[313316009,1707141069443,-500.0,0.00045205,7]
[313316010,1707141069468,-547.56672436,0.00045205,7]
[313316011,1707141069501,-2378.71,0.00045205,7]
[313316012,1707141069520,-722.21,0.00045205,7]
[313316013,1707141069536,-1564.53,0.00045205,7]
[313316014,1707141069552,-2135.15,0.00045205,7]
[313316015,1707141069579,-1133.82,0.00045205,7]
[313316016,1707141069608,-1649.41,0.00045205,7]
[313316017,1707141069639,-500.0,0.00045205,7]
[313316018,1707141069669,-869.85,0.00045205,7]
[313316019,1707141069699,-500.0,0.00045205,7]
[313316020,1707141069725,-1942.02,0.00045205,7]
[313316021,1707141069746,-500.0,0.00045205,7]
[313316022,1707141069762,-500.0,0.00045205,7]
[313316023,1707141069781,-886.83,0.00045205,7]
[313316024,1707141069796,-500.0,0.00045205,7]
[313316025,1707141069812,-2082.24,0.00045205,7]
[313316026,1707141069828,-355.74,0.00045205,2]
[313316027,1707141069843,-440.72022514,0.00045208,5]
[313316028,1707141069859,-341.33264365,0.00045208,5]
[313316029,1707141069874,-150.0,0.000453,35]
[313316030,1707141069889,-152.1338987,0.00045302,30]
[313316031,1707141069905,-150.58929576,0.00045313,30]
[313316032,1707141069923,-155.0,0.0004544,2]
[313316033,1707141069935,-150.0,0.00045479,2]
[313316034,1707141069945,-2766.98,0.000455,7]
[313316035,1707141069956,-2223.76,0.000455,7]
[313316036,1707141069966,-174.0,0.0004554,61]
[313316037,1707141069977,-152.1338987,0.00045591,30]
[313316038,1707141069987,-185.56369,0.00045639,30]
[313316039,1707141069997,-318.785562,0.00045639,30]
[313316040,1707141070007,-264.386109,0.00045639,30]
[313316041,1707141070225,-3013.119886,0.00045639,30]
[313316042,1707141070258,-152.1338987,0.00045697,30]
[313316043,1707141070268,-500.0,0.00045704,7]
[313316044,1707141070278,-152.57148148,0.00045719,28]
[313316045,1707141070288,-214.01857624,0.00045753,10]
[313316046,1707141070298,-150.0,0.000458,35]
[313316047,1707141070308,-1307.2822592,0.000458,5]
[313316048,1707141070318,-196.24525104,0.00045836,30]
[313316049,1707141070332,-450.0,0.00045847,15]
[313316050,1707141070342,-666.0,0.0004589,2]
[313316051,1707141070352,-342.74,0.0004589,2]
[313316052,1707141070362,-308.19,0.000459,2]
[313316053,1707141070372,-380.0,0.000459,2]
[313316054,1707141070382,-380.0,0.000459,2]
[313316055,1707141070392,-380.0,0.000459,2]
[313316056,1707141070402,-380.0,0.000459,2]
[313316057,1707141070411,-380.0,0.000459,2]
[313316058,1707141070421,-380.0,0.000459,2]
[313316059,1707141070430,-380.0,0.000459,2]
[313316060,1707141070440,-384.13,0.000459,2]
[313316061,1707141070453,-544.94177638,0.00045909,5]
[313316062,1707141070463,-200.0,0.00045987,3]
[313316063,1707141070473,-100000.0,0.00046,36]
[313316064,1707141070484,-18601.97291994,0.00046,2]
[313316065,1707141070495,-1000.0,0.00046,30]
[313316066,1707141070506,-1000.0,0.00046,14]
[313316067,1707141070516,-300.0,0.00046,46]
[313316068,1707141070526,-500.0,0.00046,2]
[313316069,1707141070535,-152.1338987,0.00046003,30]
[313316070,1707141070545,-911.57079102,0.00046021,4]
[313316071,1707141070556,-4016.66256344,0.00046024,2]
[313316072,1707141070566,-500.0,0.00046027,7]
[313316073,1707141070576,-500.0,0.00046027,7]
[313316074,1707141070587,-250.0,0.00046027,7]
[313316075,1707141070596,-1258.02,0.00046027,7]
[313316076,1707141070606,-500.0,0.00046027,7]
[313316077,1707141070615,-500.0,0.00046027,7]
[313316078,1707141070625,-767.26,0.00046027,7]
[313316079,1707141070635,-881.23,0.00046027,7]
[313316080,1707141070645,-500.0,0.00046027,7]
[313316081,1707141070655,-731.54,0.00046027,2]
[313316082,1707141070664,-500.0,0.00046027,7]
[313316083,1707141070674,-500.0,0.00046027,7]
[313316084,1707141070683,-500.0,0.00046027,7]
[313316085,1707141070692,-696.59,0.00046027,7]
[313316086,1707141070702,-500.0,0.00046027,7]
[313316087,1707141070713,-500.0,0.00046027,7]
[313316088,1707141070722,-500.0,0.00046027,7]
[313316089,1707141070732,-982.48,0.00046027,7]
[313316090,1707141070742,-500.0,0.00046027,7]
[313316091,1707141070752,-500.0,0.00046027,7]
[313316092,1707141070762,-500.0,0.00046027,7]
[313316093,1707141070771,-1951.09,0.00046027,7]
[313316094,1707141070781,-883.69,0.00046027,7]
[313316095,1707141070791,-500.0,0.00046027,7]
[313316096,1707141070801,-500.0,0.00046027,7]
[313316097,1707141070810,-1662.45,0.00046027,7]
[313316098,1707141070820,-500.0,0.00046027,7]
[313316099,1707141070830,-543.57,0.00046027,7]
[313316100,1707141070840,-1413.28,0.00046027,7]
[313316101,1707141070850,-510.08777622,0.00046027,7]
[313316102,1707141070859,-547.5,0.00046027,7]
[313316103,1707141070869,-500.0,0.00046027,7]
[313316104,1707141070879,-500.0,0.00046027,7]
[313316105,1707141070889,-500.0,0.00046027,2]
[313316106,1707141070899,-857.72,0.00046027,7]
[313316107,1707141070909,-500.0,0.00046027,7]
[313316108,1707141070919,-719.71,0.00046027,2]
[313316109,1707141070928,-667.71,0.00046027,2]
[313316110,1707141070937,-500.0,0.00046027,7]
[313316111,1707141070947,-640.9,0.00046027,7]
[313316112,1707141070957,-949.09,0.00046027,7]
[313316113,1707141070966,-500.0,0.00046027,7]
[313316114,1707141070976,-500.0,0.00046027,7]
[313316115,1707141070985,-500.0,0.00046027,7]
[313316116,1707141070995,-500.0,0.00046027,7]
[313316117,1707141071006,-500.0,0.00046027,7]
[313316118,1707141071016,-500.0,0.00046027,7]
[313316119,1707141071026,-547.63,0.00046027,7]
[313316120,1707141071037,-1075.46,0.00046027,7]
[313316121,1707141071048,-517.66,0.00046027,7]
[313316122,1707141071059,-550.91,0.00046027,7]
[313316123,1707141071070,-1349.54,0.00046027,7]
[313316124,1707141071081,-500.0,0.00046027,7]
[313316125,1707141071092,-500.0,0.00046027,7]
[313316126,1707141071103,-500.0,0.00046027,7]
[313316127,1707141071113,-613.72,0.00046027,7]
[313316128,1707141071124,-1006.73,0.00046027,7]
[313316129,1707141071135,-1250.19,0.00046027,2]
[313316130,1707141071145,-1273.66,0.00046027,7]
[313316131,1707141071157,-6044.25,0.00046027,7]
[313316132,1707141071168,-500.0,0.00046027,7]
[313316133,1707141071179,-500.0,0.00046027,7]
[313316134,1707141071190,-1144.85,0.00046027,7]
[313316135,1707141071203,-500.0,0.00046027,7]
[313316136,1707141071214,-1146.57,0.00046027,7]
[313316137,1707141071225,-1340.06,0.00046027,7]
[313316138,1707141071236,-753.23,0.00046027,7]
[313316139,1707141071248,-1749.33,0.00046027,5]
[313316140,1707141071260,-500.0,0.00046027,7]
[313316141,1707141071270,-973.94,0.00046027,7]
[313316142,1707141071281,-883.86,0.00046027,7]
[313316143,1707141071292,-1114.96,0.00046027,7]
[313316144,1707141071303,-500.0,0.00046027,7]
[313316145,1707141071313,-1040.76,0.00046027,7]
[313316146,1707141071324,-1579.06,0.00046027,7]
[313316147,1707141071334,-500.0,0.00046027,7]
[313316148,1707141071345,-500.0,0.00046027,7]
[313316149,1707141071355,-500.0,0.00046027,7]
[313316150,1707141071366,-708.83,0.00046027,7]
[313316151,1707141071377,-695.17,0.00046027,7]
[313316152,1707141071388,-4647.44,0.00046027,7]
[313316153,1707141071399,-794.97,0.00046027,7]
[313316154,1707141071409,-500.0,0.00046027,20]
[313316155,1707141071420,-2815.53,0.00046027,7]
[313316156,1707141071430,-16636.33,0.00046027,7]
[313316157,1707141071440,-563.07,0.00046027,7]
[313316158,1707141071451,-874.74,0.00046027,7]
[313316159,1707141071461,-882.21,0.00046027,7]
[313316160,1707141071471,-613.72,0.00046027,7]
[313316161,1707141071481,-500.0,0.00046027,7]
[313316162,1707141071491,-1232.66,0.00046027,7]
[313316163,1707141071502,-500.0,0.00046027,7]
[313316164,1707141071511,-500.0,0.00046027,7]
[313316165,1707141071521,-786.94,0.00046027,7]
[313316166,1707141071532,-619.7,0.00046027,7]
[313316167,1707141071542,-1817.8,0.00046027,7]
[313316168,1707141071553,-500.0,0.00046027,7]
[313316169,1707141071563,-500.0,0.00046027,7]
[313316170,1707141071573,-500.0,0.00046027,7]
[313316171,1707141071583,-2945.36,0.00046027,7]
[313316172,1707141071594,-1282.34,0.00046027,7]
[313316173,1707141071605,-3282.54,0.00046027,7]
[313316174,1707141071615,-500.0,0.00046027,7]
[313316175,1707141071626,-500.0,0.00046027,7]
[313316176,1707141071636,-500.0,0.00046027,7]
[313316177,1707141071646,-3762.66,0.00046027,7]
[313316178,1707141071655,-902.51,0.00046027,7]
[313316179,1707141071666,-811.91,0.00046027,7]
[313316180,1707141071677,-3153.57,0.00046027,7]
[313316181,1707141071687,-1620.37,0.00046027,7]
[313316182,1707141071698,-1709.25,0.00046027,7]
[313316183,1707141071709,-500.0,0.00046027,7]
[313316184,1707141071720,-500.0,0.00046027,7]
[313316185,1707141071730,-500.0,0.00046027,7]
[313316186,1707141071742,-841.14,0.00046027,7]
[313316187,1707141071752,-500.0,0.00046027,7]
[313316188,1707141071762,-897.63,0.00046027,7]
[313316189,1707141071773,-682.04,0.00046027,7]
[313316190,1707141071783,-500.0,0.00046027,7]
[313316191,1707141071793,-500.0,0.00046027,7]
[313316192,1707141071803,-595.39,0.00046027,7]
[313316193,1707141071813,-2067.99,0.00046027,7]
[313316194,1707141071823,-500.0,0.00046027,7]
[313316195,1707141071834,-500.0,0.00046027,7]
[313316196,1707141071844,-720.96,0.00046027,7]
[313316197,1707141071854,-1212.3,0.00046027,7]
[313316198,1707141071865,-772.76,0.00046027,7]
[313316199,1707141071876,-563.57,0.00046027,7]
[313316200,1707141071887,-492.71,0.00046027,7]
[313316201,1707141071898,-500.0,0.00046027,7]
[313316202,1707141071909,-351.44397158,0.00046027,7]
[313316203,1707141071920,-500.0,0.00046027,7]
[313316204,1707141071931,-3315.66,0.00046027,7]
[313316205,1707141071942,-1673.13,0.00046027,7]
[313316206,1707141071952,-1183.67,0.00046027,7]
[313316207,1707141071963,-500.0,0.00046027,7]
[313316208,1707141071974,-900.33,0.00046027,7]
[313316209,1707141071985,-640.84,0.00046027,7]
[313316210,1707141071995,-4531.2,0.00046027,7]
[313316211,1707141072006,-500.0,0.00046027,7]
[313316212,1707141072016,-1576.09,0.00046027,7]
[313316213,1707141072027,-797.42,0.00046027,7]
[313316214,1707141072038,-500.0,0.00046027,7]
[313316215,1707141072050,-500.0,0.00046027,7]
[313316216,1707141072061,-3717.27,0.00046027,7]
[313316217,1707141072072,-652.52,0.00046027,7]
[313316218,1707141072084,-500.0,0.00046027,7]
[313316219,1707141072095,-521.68,0.00046027,7]
[313316220,1707141072106,-500.0,0.00046027,7]
[313316221,1707141072117,-2030.25,0.00046027,7]
[313316222,1707141072127,-1425.8,0.00046027,7]
[313316223,1707141072137,-853.61,0.00046027,7]
[313316224,1707141072148,-943.6,0.00046027,7]
[313316225,1707141072159,-797.05,0.00046027,7]
[313316226,1707141072171,-869.18,0.00046027,7]
[313316227,1707141072182,-16477.57,0.00046027,7]
[313316228,1707141072193,-615.37,0.00046027,7]
[313316229,1707141072203,-962.12,0.00046027,7]
[313316230,1707141072214,-2493.22,0.00046027,7]
[313316231,1707141072225,-759.37,0.00046027,7]
[313316232,1707141072236,-637.09,0.00046027,7]
[313316233,1707141072247,-500.0,0.00046027,7]
[313316234,1707141072258,-500.0,0.00046027,7]
[313316235,1707141072268,-772.9,0.00046027,7]
[313316236,1707141072278,-1247.25,0.00046027,7]
[313316237,1707141072288,-564.67,0.00046027,7]
[313316238,1707141072298,-1021.83,0.00046027,7]
[313316239,1707141072309,-500.0,0.00046027,7]
[313316240,1707141072319,-500.0,0.00046027,7]
[313316241,1707141072329,-500.0,0.00046027,7]
[313316242,1707141072340,-1860.07,0.00046027,5]
[313316243,1707141072350,-965.46,0.00046027,7]
[313316244,1707141072360,-666.83,0.00046027,7]
[313316245,1707141072371,-835.34,0.00046027,7]
[313316246,1707141072381,-500.0,0.00046027,7]
[313316247,1707141072392,-1670.53,0.00046027,7]
[313316248,1707141072402,-500.0,0.00046027,7]
[313316249,1707141072413,-500.0,0.00046027,7]
[313316250,1707141072423,-2378.71,0.00046027,7]
[313316251,1707141072432,-722.21,0.00046027,7]
[313316252,1707141072442,-1564.53,0.00046027,7]
[313316253,1707141072453,-2135.15,0.00046027,7]
[313316254,1707141072464,-1133.82,0.00046027,7]
[313316255,1707141072474,-1649.41,0.00046027,7]
[313316256,1707141072484,-500.0,0.00046027,7]
[313316257,1707141072494,-869.85,0.00046027,7]
[313316258,1707141072504,-500.0,0.00046027,7]
[313316259,1707141072514,-1942.02,0.00046027,7]
[313316260,1707141072524,-500.0,0.00046027,7]
[313316261,1707141072533,-500.0,0.00046027,7]
[313316262,1707141072543,-886.83,0.00046027,7]
[313316263,1707141072553,-500.0,0.00046027,7]
[313316264,1707141072563,-2082.24,0.00046027,7]
[313316265,1707141072572,-412.0,0.0004606,2]
[313316266,1707141072582,-1000.0,0.000461,2]
[313316267,1707141072591,-2000.38,0.000461,2]
[313316268,1707141072601,-185.56369,0.00046195,30]
[313316269,1707141072610,-318.785562,0.00046195,30]
[313316270,1707141072620,-264.386109,0.00046195,30]
[313316271,1707141072630,-3013.119886,0.00046195,30]
[313316272,1707141072641,-150.58929576,0.00046206,30]
[313316273,1707141072651,-50000.0,0.00046267,30]
[313316274,1707141072662,-152.1338987,0.00046276,30]
[313316275,1707141072673,-150.0,0.000463,36]
[313316276,1707141072684,-500.0,0.00046326,7]
[313316277,1707141072694,-3850.54133626,0.00046354,5]
[313316278,1707141072706,-1602.094468,0.000464,67]
[313316279,1707141072717,-14512.95782478,0.00046421,8]
[313316280,1707141072727,-440.72022514,0.00046442,6]
[313316281,1707141072738,-341.33264365,0.00046442,6]
[313316282,1707141072748,-15966.0,0.00046473,30]
[313316283,1707141072758,-2766.98,0.000465,7]
[313316284,1707141072768,-2223.76,0.000465,7]
[313316285,1707141072778,-1000.0,0.000465,67]
[313316286,1707141072788,-11548.71831169,0.00046536,22]
[313316287,1707141072797,-500.0,0.00046575,60]
[313316288,1707141072807,-1000.0,0.00046575,31]
[313316289,1707141072816,-1000.0,0.00046575,31]
[313316290,1707141072826,-1000.0,0.00046575,31]
[313316291,1707141072836,-1000.0,0.00046575,31]
[313316292,1707141072846,-1000.0,0.00046575,31]
[313316293,1707141072855,-1000.0,0.00046575,31]
[313316294,1707141072865,-1000.0,0.00046575,31]
[313316295,1707141072875,-5000.0,0.00046575,40]
[313316296,1707141072886,-1000.0,0.00046575,31]
[313316297,1707141072896,-1000.0,0.00046575,31]
[313316298,1707141072906,-1000.0,0.00046575,31]
[313316299,1707141072916,-1000.0,0.00046575,31]
[313316300,1707141072926,-1000.0,0.00046575,31]
[313316301,1707141072937,-1000.0,0.00046575,31]
[313316302,1707141072947,-1000.0,0.00046575,31]
[313316303,1707141072960,-1000.0,0.00046575,40]
[313316304,1707141072970,-197.3437112,0.00046575,30]
[313316305,1707141072980,-6855.85,0.00046575,2]
[313316306,1707141072991,-5000.0,0.00046584,4]
[313316307,1707141073002,-90312.42623183,0.00046598,10]
[313316308,1707141073014,-1948.35,0.000466,7]
[313316309,1707141073024,-1000.0,0.000466,67]
[313316310,1707141073034,-4066.465753,0.000466,2]
[313316311,1707141073045,-1432.06308873,0.000466,2]
[313316312,1707141073056,-1000.0,0.000466,2]
[313316313,1707141073066,-450.0,0.00046673,15]
[313316314,1707141073077,-1000.0,0.000467,68]
[313316315,1707141073088,-150.58929576,0.00046738,30]
[313316316,1707141073227,-150.58929576,0.00046744,30]
[313316317,1707141073245,-185.56369,0.00046752,30]
[313316318,1707141073256,-318.785562,0.00046752,30]
[313316319,1707141073266,-264.386109,0.00046752,30]
[313316320,1707141073276,-3013.119886,0.00046752,30]
[313316321,1707141073286,-700.0,0.0004677,3]
[313316322,1707141073296,-150.0,0.000468,37]
[313316323,1707141073306,-1307.2822592,0.000468,8]
[313316324,1707141073317,-1000.0,0.000468,68]
[313316325,1707141073326,-155.0,0.0004681,2]